[Event "41st Amateur D7"]
[Site "ChessGUI4"]
[Date "2013.07.06"]
[Round "13.5"]
[White "ProChess 1.02AD"]
[Black "MadChess 1.2"]
[Result "1/2-1/2"]
[BlackElo "2200"]
[ECO "B06"]
[EventDate "2013.??.??"]
[TimeControl "40/1500:40/1500:40/1500"]
[WhiteElo "2244"]

{ i5 Quad } 1.e4 { [%eval 0,1] [%emt 0:00:00] } 1...g6
{ [%eval 0,1] [%emt 0:00:00] } 2.d4 { [%eval 0,1] [%emt 0:00:00] } 2...Bg7
{ [%eval 0,1] [%emt 0:00:00] } 3.Nc3 { [%eval 0,1] [%emt 0:00:00] } 3...c6
{ [%eval 0,1] [%emt 0:00:00] } 4.Bc4 { [%eval 0,1] [%emt 0:00:00] } 4...d6
{ [%eval 0,1] [%emt 0:00:00] } 5.Qf3 { [%eval 0,1] [%emt 0:00: 00] } 5...e6
{ [%eval 0,1] [%emt 0:00:00] } 6.Nge2 { [%eval 0,1] [%emt 0:00:00] } 6...b5
{ [%eval 0,1] [%emt 0:00:00] } 7.Bb3 { [%eval 0,1] [%emt 0:00:00] } 7...a5
{ [%eval 0,1] [%emt 0:00:00] } 8.a3 { [%eval 0,1] [%emt 0:00:00] } 8...Ba6
{ [%eval 0,1] [%emt 0:00: 00] } 9.d5 { [%eval 90,11] [%emt 0:01:17] }
9...cxd5 { [%eval -61,11] [%emt 0:00:33] (cxd5) } 10.exd5
{ [%eval 68,12] [%emt 0:02:01] (exd5) } 10...e5
{ [%eval -49,11] [%emt 0:00:20] (e5) } 11.Ne4
{ [%eval 80,11] [%emt 0:00:56] (O-O) } 11...h6
{ [%eval -23,11] [%emt 0:00:26] (a4) } 12.Bd2
{ [%eval 65,11] [%emt 0:01:12] (O-O) } 12...f5
{ [%eval -21,12] [%emt 0:00:45] (f5) } 13.N4c3
{ [%eval 35,12] [%emt 0:00:57] (N4c3) } 13...Ne7
{ [%eval 15,11] [%emt 0:00:24] (Nd7) } 14.g4
{ [%eval 35,11] [%emt 0: 01:43] (O-O) } 14...Nd7
{ [%eval 65,10] [%emt 0:00:36] (Nd7) } 15.gxf5
{ [%eval 35,11] [%emt 0:00:29] (gxf5) } 15...O-O
{ [%eval 73,10] [%emt 0:00:23] (O-O) } 16.Qg2
{ [%eval 30,11] [%emt 0:00:56] (Qg2) } 16...Rxf5
{ [%eval 72,10] [%emt 0:00:31] (Rxf5) } 17.Ne4
{ [%eval 33,11] [%emt 0:01:40] (Ne4) } 17...Qc7
{ [%eval 69,10] [%emt 0:00:29] (Qc7) } 18.N2g3
{ [%eval 38,10] [%emt 0:00:25] (N2c3) } 18...Rf4
{ [%eval -26,11] [%emt 0:00:43] (Rff8) } 19.Qh3
{ [%eval 71,11] [%emt 0:00:41] (Nxd6) } 19...Nf8
{ [%eval -14,11] [%emt 0:00:27] (Rf7) } 20.a4
{ [%eval 75,11] [%emt 0:00:59] (Bxf4) } 20...bxa4
{ [%eval 54,11] [%emt 0:00:41] (bxa4) } 21.Rxa4
{ [%eval 63,12] [%emt 0:00:28] (Rxa4) } 21...Bb5
{ [%eval 38,11] [%emt 0:00:21] (Bb5) } 22.Ra3
{ [%eval 51,11] [%emt 0:00:22] (Ra1) } 22...a4
{ [%eval 112,11] [%emt 0:00:53] (a4) } 23.Bxf4
{ [%eval 10,10] [%emt 0:00:16] (Nc3) } 23...exf4
{ [%eval 151,11] [%emt 0:00:27] (exf4) } 24.Ne2
{ [%eval -35,11] [%emt 0:00:37] (Ne2) } 24...Ra5
{ [%eval 151,11] [%emt 0:00:44] (Ra5) } 25.c4
{ [%eval -41,11] [%emt 0:00:17] (Nxf4) } 25...axb3
{ [%eval 191,11] [%emt 0:00:36] (axb3) } 26.cxb5
{ [%eval -125,13] [%emt 0:00:29] (cxb5) } 26...Bxb2
{ [%eval 179,13] [%emt 0:00:42] (Rxa3) } 27.Rxa5
{ [%eval -46,12] [%emt 0:00:23] (Rxa5) } 27...Qxa5+
{ [%eval 163,13] [%emt 0:00:23] (Qxa5) } 28.Kf1
{ [%eval -43,13] [%emt 0:00:35] (Kf1) } 28...Qxb5
{ [%eval 168,13] [%emt 0:00:37] (Qxb5) } 29.Nd2
{ [%eval -47,13] [%emt 0:00:33] (Nd2) } 29...Qxd5
{ [%eval 154,14] [%emt 0: 00:39] (Nxd5) } 30.Qxb3
{ [%eval -49,14] [%emt 0:00:16] (Qxb3) } 30...Qxb3
{ [%eval 156,15] [%emt 0:00:34] (Qxb3) } 31.Nxb3
{ [%eval -53,14] [%emt 0:00:11] (Nxb3) } 31...Ne6
{ [%eval 161,14] [%emt 0:00:21] (Ne6) } 32.Ke1
{ [%eval -54,14] [%emt 0:00: 54] (Kg2) } 32...Kf7
{ [%eval 186,12] [%emt 0:00:41] (Be5) } 33.Kd2
{ [%eval -52,13] [%emt 0:00:14] (Kd2) } 33...Be5
{ [%eval 178,12] [%emt 0:00:55] (d5) } 34.Kd3
{ [%eval -51,13] [%emt 0:00:21] (Nbc1) } 34...Nc6
{ [%eval 174,12] [%emt 0:00:49] (Kf6) } 35.Rc1
{ [%eval -32,13] [%emt 0:00:18] (Rc1) } 35...f3
{ [%eval 166,13] [%emt 0:00:28] (Nb8) } 36.Ng1
{ [%eval -5,13] [%emt 0:00:11] (Ng3) } 36...Bxh2
{ [%eval 171,16] [%emt 0:01:23] (Bxh2) } 37.Nxf3
{ [%eval -13,14] [%emt 0:00:21] (Nxf3) } 37...Ne5+
{ [%eval 161,16] [%emt 0:00:52] (Ne5) } 38.Nxe5+
{ [%eval -8,15] [%emt 0:00:08] (Nxe5) } 38...Bxe5
{ [%eval 164,16] [%emt 0:01:53] (Bxe5) } 39.Ke4
{ [%eval -6,14] [%emt 0:00: 31] (Ke4) } 39...Kf6
{ [%eval 169,15] [%emt 0:02:04] (Nf4) } 40.Rc8
{ [%eval -2,13] [%emt 0:00:12] (Rc6) } 40...h5
{ [%eval 165,14] [%emt 0:01:03] (g5) } 41.Nd2
{ [%eval 0,15] [%emt 0:02:29] (Na5) } 41...Nc7
{ [%eval 173,16] [%emt 0:01:30] (Ke7) } 42.Rf8+
{ [%eval 0,18] [%emt 0:01:50] (Rf8) } 42...Ke6
{ [%eval 183,15] [%emt 0:00:42] (Ke6) } 43.Nf3
{ [%eval 0,17] [%emt 0:01:20] (Nf3) } 43...Bf6
{ [%eval 186,15] [%emt 0:00:39] (Bf6) } 44.Nd4+
{ [%eval 0,17] [%emt 0:01:30] (Rg8) } 44...Ke7
{ [%eval 159,16] [%emt 0:01:34] (Bxd4) } 45.Rb8
{ [%eval 0,15] [%emt 0:00:35] (Rb8) } 45...d5+
{ [%eval 165, 15] [%emt 0:00:49] (d5) } 46.Ke3
{ [%eval 7,16] [%emt 0:02:56] (Kd3) } 46...h4
{ [%eval 167,15] [%emt 0:01:01] (h4) } 47.f4
{ [%eval 17,15] [%emt 0:02:50] (Rb7) } 47...Ne8
{ [%eval 115,15] [%emt 0:01:40] (h3) } 48.Nc6+
{ [%eval 76,16] [%emt 0:00:23] (Rb7) } 48...Kd7
{ [%eval 1,16] [%emt 0:01:35] (Kd7) } 49.Ne5+
{ [%eval 85,17] [%emt 0: 00:35] (Ne5) } 49...Bxe5
{ [%eval 0,16] [%emt 0:00:41] (Bxe5) } 50.fxe5
{ [%eval 90,17] [%emt 0:00:32] (fxe5) } 50...Nc7
{ [%eval -22,16] [%emt 0:00:51] (h3) } 51.Rb6
{ [%eval 95,14] [%emt 0:00:22] (Rb6) } 51...Ne6
{ [%eval -30,16] [%emt 0:00:34] } 52.Rd6+
{ [%eval 128,16] [%emt 0:00:35] (Rd6) } 52...Ke7
{ [%eval -41,17] [%emt 0:01:07] (Ke7) } 53.Rxd5
{ [%eval 133,16] [%emt 0:00:51] (Rxd5) } 53...Ng5
{ [%eval -65,16] [%emt 0:01:05] (h3) } 54.Rd6
{ [%eval 163,15] [%emt 0:00:39] (Rd6) } 54...Nf7
{ [%eval -160,15] [%emt 0:00:39] (Ne6) } 55.Rxg6
{ [%eval 173,16] [%emt 0:00:20] (Rxg6) } 55...Nxe5
{ [%eval -184,16] [%emt 0:00:39] (Nxe5) } 1/2-1/2

[Event "41st Amateur D7"]
[Site "ChessGUI4"]
[Date "2013.07.06"]
[Round "14.1"]
[White "Carballo 0.8"]
[Black "FireFly 2.6.0 64-bit"]
[Result "0-1"]
[BlackElo "2258"]
[ECO "E34"]
[EventDate "2013.??.??"]
[TimeControl "40/1500:40/1500:40/1500"]
[WhiteElo "2273"]

{ i5 Quad } 1.d4 { [%eval 0,1] [%emt 0:00:00] } 1...Nf6
{ [%eval 0,1] [%emt 0:00:00] } 2.c4 { [%eval 0,1] [%emt 0:00:00] } 2...e6
{ [%eval 0,1] [%emt 0:00:00] } 3.Nc3 { [%eval 0,1] [%emt 0:00:00] } 3...Bb4
{ [%eval 0,1] [%emt 0:00:00] } 4.Qc2 { [%eval 0, 1] [%emt 0:00:00] } 4...d5
{ [%eval 0,1] [%emt 0:00:00] } 5.cxd5 { [%eval 0,1] [%emt 0:00:00] } 5...Qxd5
{ [%eval 0,1] [%emt 0:00:00] } 6.Nf3 { [%eval 0,1] [%emt 0:00:00] } 6...Qf5
{ [%eval 0,1] [%emt 0:00:00] } 7.Qxf5 { [%eval 0,1] [%emt 0:00:00] } 7...exf5
{ [%eval 0,1] [%emt 0:00:00] } 8.a3 { [%eval 0,1] [%emt 0:00:00] } 8...Be7
{ [%eval 0,1] [%emt 0:00:00] } 9.Bg5 { [%eval 28,13] [%emt 0:00:37] } 9...Be6
{ [%eval -40,12] [%emt 0:00:57] (c6) } 10.Bxf6
{ [%eval 34,13] [%emt 0:00:36] (e3) } 10...Bxf6
{ [%eval 7,13] [%emt 0:00:47] (Bxf6) } 11.e4
{ [%eval 40,13] [%emt 0:00:35] (Nb5) } 11...fxe4
{ [%eval 3,13] [%emt 0:00:46] (fxe4) } 12.Nxe4
{ [%eval 20,14] [%emt 0:00: 34] (Nxe4) } 12...Be7
{ [%eval 6,12] [%emt 0:00:46] (Bd5) } 13.Bb5+
{ [%eval 24,13] [%emt 0:00:33] (Bb5) } 13...c6
{ [%eval 15,11] [%emt 0:00:46] (c6) } 14.Bd3
{ [%eval 21,14] [%emt 0:00:32] (Bd3) } 14...Nd7
{ [%eval 22,12] [%emt 0:00:45] (Nd7) } 15.O-O
{ [%eval 22,14] [%emt 0:00:32] (O-O) } 15...O-O-O
{ [%eval 10,12] [%emt 0:00:45] (O-O) } 16.b4
{ [%eval 19,13] [%emt 0:00:31] (Rfe1) } 16...Kb8
{ [%eval 6,12] [%emt 0:00:45] (Kb8) } 17.Rfe1
{ [%eval 21,13] [%emt 0:00:30] (Rfe1) } 17...h6
{ [%eval 13,12] [%emt 0:00:44] (Rhe8) } 18.Rac1
{ [%eval 14,12] [%emt 0:00:29] (Re3) } 18...Bg4
{ [%eval 26, 12] [%emt 0:00:44] (Rhe8) } 19.Ned2
{ [%eval 27,13] [%emt 0:00:29] (Re3) } 19...Rhe8
{ [%eval 26,12] [%emt 0:00:44] (Rhe8) } 20.Bc4
{ [%eval 27,13] [%emt 0:00:28] (Bc4) } 20...Bh5
{ [%eval 33,12] [%emt 0:00:43] (Bh5) } 21.g4
{ [%eval 27,12] [%emt 0: 00:27] (Rc3) } 21...Bg6
{ [%eval 43,12] [%emt 0:00:43] (Bg6) } 22.Re3
{ [%eval 22,13] [%emt 0:00:26] (Rc3) } 22...Bd6
{ [%eval 62,12] [%emt 0:00:42] (Bd6) } 23.h4
{ [%eval 17,14] [%emt 0:00:26] (Rce1) } 23...h5
{ [%eval 72,12] [%emt 0:00:42] (h5) } 24.gxh5
{ [%eval 10,14] [%emt 0:00:25] (g5) } 24...Bxh5
{ [%eval 88,12] [%emt 0:00:42] (Bxh5) } 25.Rce1
{ [%eval 11,15] [%emt 0:00:24] (Rxe8) } 25...Rh8
{ [%eval 126,12] [%emt 0:00: 41] (Rxe3) } 26.Kg2
{ [%eval -15,11] [%emt 0:00:24] (b5) } 26...Nf6
{ [%eval 128,11] [%emt 0:00:41] (Nf6) } 27.R3e2
{ [%eval -24,13] [%emt 0:00:23] (Nb3) } 27...Rh6
{ [%eval 143,11] [%emt 0:00:40] (Rh6) } 28.Ba2
{ [%eval -54,13] [%emt 0:00:23] (Ne4) } 28...Rg6+
{ [%eval 147,12] [%emt 0:00:40] (Bf4) } 29.Kf1
{ [%eval -50,16] [%emt 0:00:22] (Kf1) } 29...Rg4
{ [%eval 147,12] [%emt 0:00:39] (Rh6) } 30.Bc4
{ [%eval -78,12] [%emt 0:00:21] (Bb3) } 30...Bc7
{ [%eval 149,12] [%emt 0:00:39] (Bg6) } 31.Re7
{ [%eval -42,13] [%emt 0:00:21] (Re7) } 31...Rf4
{ [%eval 149,12] [%emt 0:00: 38] (Bd6) } 32.Kg2
{ [%eval -82,13] [%emt 0:00:20] (Kg2) } 32...Rf8
{ [%eval 156,11] [%emt 0:00:38] (Bd6) } 33.Bd3
{ [%eval -57,12] [%emt 0:00:20] (Bd3) } 33...Bb6
{ [%eval 170,11] [%emt 0:00:37] (Bb6) } 34.Be4
{ [%eval -57,12] [%emt 0:00:19] (Be2) } 34...Bd8
{ [%eval 199,11] [%emt 0:00:36] (Rd8) } 35.Re5
{ [%eval -170,15] [%emt 0:00:19] (Re5) } 35...Bc7
{ [%eval 188,12] [%emt 0:00:36] (Bxf3) } 36.Rg5
{ [%eval -106,14] [%emt 0:00:18] (Rg5) } 36...Nxe4
{ [%eval 184,13] [%emt 0:00:35] (Bxf3) } 37.Rxh5
{ [%eval -90,16] [%emt 0:00:18] (Rxh5) } 37...Rg4+
{ [%eval 182,13] [%emt 0:00:27] (Nxd2) } 38.Kf1
{ [%eval -70,16] [%emt 0:00:17] (Kf1) } 38...Nxd2+
{ [%eval 160,13] [%emt 0:00:27] (Nxd2) } 39.Nxd2
{ [%eval -70,15] [%emt 0:00:17] (Nxd2) } 39...Rxd4
{ [%eval 160,12] [%emt 0:00:27] (Rxd4) } 40.Nb3
{ [%eval -69,15] [%emt 0:00:16] (Nf3) } 40...Rd5
{ [%eval 193,12] [%emt 0:00:27] (Rf4) } 41.Rxd5
{ [%eval -56,15] [%emt 0:00:54] (Rg5) } 41...cxd5
{ [%eval 188,13] [%emt 0:00:35] (cxd5) } 42.Kg2
{ [%eval -66,14] [%emt 0:00:52] (h5) } 42...g6
{ [%eval 191,12] [%emt 0:00: 35] (Bd8) } 43.Nd4
{ [%eval -62,15] [%emt 0:00:51] (Nd4) } 43...a6
{ [%eval 202,13] [%emt 0:00:35] (Bd8) } 44.Rd1
{ [%eval -76,14] [%emt 0:00:50] (Nb3) } 44...Rh8
{ [%eval 209,12] [%emt 0:00:35] (Kc8) } 45.Nf3
{ [%eval -84,16] [%emt 0:00:48] (Nf3) } 45...Rd8
{ [%eval 216,12] [%emt 0:00:35] (Rh5) } 46.Ng5
{ [%eval -75,15] [%emt 0:00:47] (Kf1) } 46...Rd7
{ [%eval 231,13] [%emt 0:00:35] (Rd7) } 47.Ne4
{ [%eval -80, 14] [%emt 0:00:46] (Ne4) } 47...d4
{ [%eval 212,12] [%emt 0:00:35] (d4) } 48.Nc5
{ [%eval -88,15] [%emt 0:00:45] (Kf3) } 48...Rd6
{ [%eval 190,12] [%emt 0:00:36] (Rd5) } 49.f4
{ [%eval -74,14] [%emt 0:00:44] (Kf3) } 49...a5
{ [%eval 202,12] [%emt 0:00:35] (b5) } 50.bxa5
{ [%eval -82,13] [%emt 0:00:43] (Kf3) } 50...Bxa5
{ [%eval 215,12] [%emt 0:00:35] (Bxa5) } 51.Ne4
{ [%eval -92,14] [%emt 0:00:42] (Ne4) } 51...Rd8
{ [%eval 212,12] [%emt 0:00:35] (Rd8) } 52.Rd3
{ [%eval -89,15] [%emt 0:00:40] (Ng5) } 52...Kc7
{ [%eval 220,12] [%emt 0:00:35] (Be1) } 53.Ng5
{ [%eval -87,16] [%emt 0:00:39] (Ng5) } 53...Rd7
{ [%eval 234,13] [%emt 0:00:35] (Rd7) } 54.f5
{ [%eval -79, 16] [%emt 0:00:38] (f5) } 54...gxf5
{ [%eval 199,13] [%emt 0:00:35] (gxf5) } 55.h5
{ [%eval -82,15] [%emt 0:00:37] (h5) } 55...Rd6
{ [%eval 178,13] [%emt 0:00:35] (Rd6) } 56.Nxf7
{ [%eval -83,15] [%emt 0:00:37] (Nxf7) } 56...Rf6
{ [%eval 142,14] [%emt 0:00: 35] (Rf6) } 57.Ne5
{ [%eval -74,15] [%emt 0:00:36] (Ng5) } 57...Bb6
{ [%eval 142,13] [%emt 0:00:35] (Bc3) } 58.Rg3
{ [%eval -48,14] [%emt 0:00:35] (Rh3) } 58...Kd6
{ [%eval 160,13] [%emt 0:00:35] (Re6) } 59.Nd3
{ [%eval -44,14] [%emt 0:00:34] (Nd3) } 59...Ba5
{ [%eval 160,13] [%emt 0:00:35] (Bc7) } 60.a4
{ [%eval -60,13] [%emt 0:00:33] (Kf3) } 60...Bd2
{ [%eval 224,13] [%emt 0:00:35] (Bd2) } 61.Rg8
{ [%eval -70, 13] [%emt 0:00:32] (Rg7) } 61...Kd5
{ [%eval 209,12] [%emt 0:00:36] (Kd5) } 62.Rb8
{ [%eval -83,14] [%emt 0:00:31] (Rd8) } 62...b6
{ [%eval 241,13] [%emt 0:00:35] (Rh6) } 63.Rd8+
{ [%eval -91,13] [%emt 0:00:31] (Kf3) } 63...Rd6
{ [%eval 251,12] [%emt 0:00: 35] (Rd6) } 64.Rxd6+
{ [%eval -104,17] [%emt 0:00:30] (Rxd6) } 64...Kxd6
{ [%eval 254, 17] [%emt 0:00:35] (Kxd6) } 65.Kf3
{ [%eval -101,18] [%emt 0:00:28] (Kf3) } 65...Kd5
{ [%eval 254,17] [%emt 0:00:35] (Bg5) } 66.Ke2
{ [%eval -116,16] [%emt 0:00:28] (Nb2) } 66...Bh6
{ [%eval 255,17] [%emt 0:00:36] (Bg5) } 67.Ke1
{ [%eval -150,16] [%emt 0:00:27] (Kf3) } 67...Ke4
{ [%eval 368,16] [%emt 0:00:27] (Ke4) } 68.Ke2
{ [%eval -163,17] [%emt 0:00:27] (Nb2) } 68...Be3
{ [%eval 404,17] [%emt 0:00:22] (Bg7) } 69.Nf2+
{ [%eval -108,15] [%emt 0:00:26] (Nf2) } 69...Bxf2
{ [%eval 538,19] [%emt 0: 00:41] (Kd5) } 70.Kxf2
{ [%eval -320,18] [%emt 0:00:26] (Kxf2) } 70...Ke5
{ [%eval 655, 20] [%emt 0:00:30] (Ke5) } 71.Kf3
{ [%eval -351,18] [%emt 0:00:25] (h6) } 71...Kf6
{ [%eval 656,19] [%emt 0:00:23] (Kf6) } 72.Kf4
{ [%eval -377,18] [%emt 0:00:24] (Kf4) } 72...Kg7
{ [%eval 936,20] [%emt 0:00:45] (Kg7) } 73.Kf3
{ [%eval -808,17] [%emt 0:00:24] (Kf3) } 73...Kh6
{ [%eval 1260,21] [%emt 0:00:46] (Kh6) } 74.Kf4
{ [%eval -1062,18] [%emt 0:00:22] (Kf4) } 74...Kxh5
{ [%eval 1288,21] [%emt 0:00:23] (Kxh5) } 75.Kf3
{ [%eval -1124,17] [%emt 0:00:22] (Kf3) } 75...Kg5
{ [%eval 1293,20] [%emt 0:00:24] (Kg5) } 76.Ke2
{ [%eval -1388,17] [%emt 0:00:22] (Ke2) } 0-1

[Event "41st Amateur D7"]
[Site "ChessGUI4"]
[Date "2013.07.06"]
[Round "14.2"]
[White "Tigran 2.3 64-bit"]
[Black "ChessKiss 1.7 64-bit"]
[Result "1-0"]
[BlackElo "2214"]
[ECO "E15"]
[EventDate "2013.??.??"]
[TimeControl "40/1500:40/1500:40/1500"]
[WhiteElo "2289"]

{ i5 Quad } 1.d4 { [%eval 0,1] [%emt 0:00:00] } 1...Nf6
{ [%eval 0,1] [%emt 0:00:00] } 2.c4 { [%eval 0,1] [%emt 0:00:00] } 2...e6
{ [%eval 0,1] [%emt 0:00:00] } 3.Nf3 { [%eval 0,1] [%emt 0:00:00] } 3...b6
{ [%eval 0,1] [%emt 0:00:00] } 4.g3 { [%eval 0,1] [%emt 0:00:00] } 4...Ba6
{ [%eval 0,1] [%emt 0:00:00] } 5.b3 { [%eval 0,1] [%emt 0:00: 00] } 5...Bb4+
{ [%eval 0,1] [%emt 0:00:00] } 6.Bd2 { [%eval 0,1] [%emt 0:00:00] } 6...Be7
{ [%eval 0,1] [%emt 0:00:00] } 7.Nc3 { [%eval 0,1] [%emt 0:00:00] } 7...O-O
{ [%eval 0, 1] [%emt 0:00:00] } 8.Rc1 { [%eval 0,1] [%emt 0:00:00] } 8...Ba3
{ [%eval 0,1] [%emt 0:00:00] } 9.Rb1 { [%eval -4,14] [%emt 0:00:42] } 9...Nc6
{ [%eval 17,14] [%emt 0:00: 43] (c5) } 10.Bg2
{ [%eval -4,14] [%emt 0:00:42] (Bg2) } 10...d5
{ [%eval -26,12] [%emt 0:00:44] (d5) } 11.O-O
{ [%eval 6,13] [%emt 0:00:42] (O-O) } 11...dxc4
{ [%eval -8,11] [%emt 0:00:41] (dxc4) } 12.bxc4
{ [%eval 36,14] [%emt 0:00:42] (bxc4) } 12...Nxd4
{ [%eval -48,12] [%emt 0:00:49] (Nxd4) } 13.Nxd4
{ [%eval 36,13] [%emt 0:00: 43] (Nxd4) } 13...Qxd4
{ [%eval -24,13] [%emt 0:00:39] (Qxd4) } 14.Bxa8
{ [%eval 34,14] [%emt 0:00:43] (Bxa8) } 14...Rxa8
{ [%eval -55,13] [%emt 0:00:36] (Rxa8) } 15.Nb5
{ [%eval 25,14] [%emt 0:00:43] (Nb5) } 15...Bxb5
{ [%eval -53,13] [%emt 0:00:35] (Bxb5) } 16.cxb5
{ [%eval 59,13] [%emt 0:00:41] (cxb5) } 16...Qc4
{ [%eval -69,12] [%emt 0:00: 34] (Bd6) } 17.Qb3
{ [%eval 94,14] [%emt 0:00:43] (Bg5) } 17...Qxe2
{ [%eval -71,14] [%emt 0:00:31] (Qxb3) } 18.Qxa3
{ [%eval 118,15] [%emt 0:00:43] (Qxa3) } 18...Qxd2
{ [%eval -83,14] [%emt 0:00:34] (Qxd2) } 19.Rbd1
{ [%eval 123,16] [%emt 0:00:44] (Rfd1) } 19...Qa5
{ [%eval -85,15] [%emt 0:00:34] (Qe2) } 20.Qxa5
{ [%eval 132,16] [%emt 0:00:36] (Qxa5) } 20...bxa5
{ [%eval -127,17] [%emt 0:00:36] (bxa5) } 21.Rd4
{ [%eval 151,16] [%emt 0:00:35] (Rd4) } 21...Rb8
{ [%eval -127,16] [%emt 0:00:32] (Rb8) } 22.Rc1
{ [%eval 159,16] [%emt 0:00:45] (Rc1) } 22...Nd5
{ [%eval -133,16] [%emt 0:00: 29] (Nd5) } 23.Rc5
{ [%eval 162,16] [%emt 0:00:45] (Rc5) } 23...Rb7
{ [%eval -134,15] [%emt 0:00:28] (h5) } 24.Ra4
{ [%eval 163,15] [%emt 0:00:45] (Ra4) } 24...f5
{ [%eval -137,15] [%emt 0:00:28] (Kf8) } 25.Rxa5
{ [%eval 169,15] [%emt 0:00:45] (Kg2) } 25...Kf7
{ [%eval -141,14] [%emt 0:00:26] (Kf7) } 26.f4
{ [%eval 169,15] [%emt 0:00: 37] (Rc6) } 26...Ke7
{ [%eval -134,13] [%emt 0:00:26] (h6) } 27.Rc6
{ [%eval 188,15] [%emt 0:00:47] (Kf2) } 27...Nb4
{ [%eval -140,15] [%emt 0:00:25] (Rb6) } 28.Rc4
{ [%eval 191,17] [%emt 0:00:47] (Rc4) } 28...Nd5
{ [%eval -145,15] [%emt 0:00:24] (Nd5) } 29.Kf2
{ [%eval 190,16] [%emt 0:00:48] (Kf2) } 29...h6
{ [%eval -151,13] [%emt 0:00: 23] (h6) } 30.a4
{ [%eval 195,15] [%emt 0:00:48] (h4) } 30...g5
{ [%eval -146,14] [%emt 0:00:23] (g5) } 31.fxg5
{ [%eval 210,16] [%emt 0:00:48] (Ra6) } 31...hxg5
{ [%eval -117,14] [%emt 0:00:22] (hxg5) } 32.h4
{ [%eval 228,16] [%emt 0:00:49] (Ra6) } 32...gxh4
{ [%eval -141,13] [%emt 0:00:23] (gxh4) } 33.gxh4
{ [%eval 242,16] [%emt 0:00:50] (gxh4) } 33...Nb6
{ [%eval -170,13] [%emt 0:00:25] (Nb6) } 34.Rc6
{ [%eval 248,16] [%emt 0:00:50] (Rc6) } 34...Nc8
{ [%eval -217,14] [%emt 0:00:20] (Nd5) } 35.Raa6
{ [%eval 301,16] [%emt 0:00:44] (Raa6) } 35...Nd6
{ [%eval -270,14] [%emt 0: 00:21] (Nd6) } 36.Rc1
{ [%eval 307,14] [%emt 0:00:54] (Rc1) } 36...Ne4+
{ [%eval -286, 13] [%emt 0:00:19] (Kf7) } 37.Kf3
{ [%eval 328,15] [%emt 0:00:55] (Kf3) } 37...e5
{ [%eval -325,13] [%emt 0:00:19] (Nd6) } 38.Rac6
{ [%eval 386,15] [%emt 0:00:53] (Rac6) } 38...Kd7
{ [%eval -357,13] [%emt 0:00:17] (Kd7) } 39.Rg1
{ [%eval 460,15] [%emt 0:01:00] (Rd1) } 39...Nd2+
{ [%eval -504,12] [%emt 0:00:17] (Nd2) } 40.Ke3
{ [%eval 540,16] [%emt 0:01:06] (Ke3) } 40...Nb3
{ [%eval -548,12] [%emt 0:00:16] (Nb3) } 41.Rg7+
{ [%eval 553,15] [%emt 0:00:34] (Rg7) } 41...Kc8
{ [%eval -968,15] [%emt 0:00: 59] (Ke8) } 42.h5
{ [%eval 764,15] [%emt 0:00:34] (h5) } 42...Na5
{ [%eval -1013,15] [%emt 0:00:57] (Nd4) } 43.Rf6
{ [%eval 1014,14] [%emt 0:00:34] (Rf6) } 1-0